bitfinex-derivatives/quotes_ETHF0:USTF0_20260120
["timestamp","ask_amount","ask_price","bid_price","bid_amount"]
[1768876437190,5.59365245,3190.8,3189.5,0.96354546]
[1768876437387,0.85577394,3190.7,3189.5,0.96354546]
[1768876437584,1.75,3190.9,3189.5,0.96354546]
[1768876437787,0.85576013,3190.8,3189.5,1.10265504]
[1768876437988,1.75275189,3190.9,3189.5,1.10265504]
[1768876438190,0.85652815,3190.8,3189.8,0.96354546]
[1768876438392,0.00275189,3190.9,3189.8,0.96354546]
[1768876438586,0.00275189,3190.9,3189.6,0.13910958]
[1768876440694,0.96354546,3190.2,3188.6,0.14203083]
[1768876441189,0.96354546,3190.2,3188.8,1.10265504]
[1768876442089,1.18082881,3190.4,3188.9,1.18082881]
[1768876442294,1.18082881,3190.1,3188.8,0.13910958]
[1768876443391,0.15681,3190.6,3189.3,1.18082881]
[1768876443588,0.00275189,3190.9,3189.6,1.18082881]
[1768876443792,0.85533205,3190.8,3189.6,1.18082881]
[1768876443986,0.85533205,3190.7,3189.6,1.18082881]
[1768876444182,0.85533205,3190.6,3189.6,1.18082881]
[1768876444391,0.00275189,3190.9,3189.6,1.18082881]
[1768876444598,0.85535199,3190.8,3189.6,1.18082881]
[1768876444799,0.00275189,3190.9,3189.6,1.18082881]
[1768876445096,0.00275189,3190.9,3189.3,0.13910958]
[1768876445097,0.85539635,3190.8,3189.3,0.13910958]
[1768876445296,0.00275189,3190.9,3189.3,0.13910958]
[1768876445499,0.85530119,3190.8,3189.3,0.13910958]
[1768876445690,0.00275189,3190.9,3189.3,0.13910958]
[1768876445889,0.85530184,3190.8,3189.3,0.13910958]
[1768876446091,0.00275189,3190.9,3189.3,0.13910958]
[1768876446286,0.8553013,3190.8,3189.3,0.13910958]
[1768876446490,0.00275189,3190.9,3189.3,0.13910958]
[1768876446696,0.85517917,3190.8,3189.3,0.13910958]
[1768876446895,0.00275189,3190.9,3189.3,0.13910958]
[1768876447095,0.85520224,3190.8,3189.3,0.13910958]
[1768876447297,0.00275189,3190.9,3189.3,0.13910958]
[1768876447598,0.85511459,3190.8,3189.3,0.13910958]
[1768876447802,0.85508468,3190.7,3188.9,0.29599958]
[1768876447996,0.14741399,3190.9,3188.9,0.29599958]
[1768876448301,0.85509077,3190.8,3189.0,0.13910958]
[1768876448495,0.85509077,3190.7,3189.0,0.13910958]
[1768876448692,0.30420399,3190.9,3189.0,0.13910958]
[1768876448893,0.85500453,3190.8,3189.0,0.13910958]
[1768876449188,0.85500453,3190.7,3189.0,0.13910958]
[1768876449389,0.85502813,3190.6,3189.0,0.13910958]
[1768876449595,0.3014621,3190.7,3189.0,0.13910958]
[1768876449790,0.85502947,3190.6,3189.0,0.13910958]
[1768876449997,0.3014621,3190.7,3189.0,0.13910958]
[1768876450192,0.85502582,3190.6,3189.0,0.13910958]
[1768876450391,0.85502582,3190.5,3189.0,0.13910958]
[1768876450592,0.1446621,3190.5,3188.6,0.00292125]
[1768876450999,0.1446621,3190.5,3188.6,0.14203083]
[1768876451495,0.15681,3190.6,3188.6,0.14203083]
[1768876451696,0.85372184,3190.5,3188.6,0.14203083]
[1768876451897,0.15681,3190.6,3188.6,0.14203083]
[1768876452095,0.8537232,3190.5,3188.6,0.14203083]
[1768876452298,0.85391093,3190.4,3188.6,0.14203083]
[1768876452493,0.15681,3190.6,3188.7,0.13910958]
[1768876452693,0.85398118,3190.5,3188.7,0.13910958]
[1768876452898,0.85398118,3190.4,3188.7,0.13910958]
[1768876453101,0.15681,3190.6,3188.7,0.13910958]
[1768876453300,0.853981,3190.5,3188.7,0.13910958]
[1768876453494,0.853981,3190.4,3188.7,0.13910958]
[1768876453693,0.15681,3190.6,3188.7,0.13910958]
[1768876453897,0.85429007,3190.5,3188.7,0.13910958]
[1768876454098,0.85429007,3190.4,3188.7,0.13910958]
[1768876454295,0.85468477,3190.3,3188.7,0.13910958]
[1768876454491,0.85464478,3190.2,3188.7,0.13910958]
[1768876454695,0.85464478,3190.1,3188.7,0.13910958]
[1768876454896,0.3014821,3190.4,3188.7,0.13910958]
[1768876455103,1.01141269,3190.3,3188.7,0.13910958]
[1768876455295,0.85459269,3190.2,3188.7,0.13910958]
[1768876455896,1.15608479,3190.2,3188.6,0.00292125]
[1768876456100,0.99925479,3190.1,3188.6,0.00292125]
[1768876456407,0.85459269,3190.0,3188.6,0.00292125]
[1768876456796,0.99925479,3190.0,3188.6,0.00292125]
[1768876457002,0.85459269,3189.9,3188.6,0.00292125]
[1768876459892,0.99925479,3189.9,3188.6,0.00292125]
[1768876460099,0.99925479,3189.8,3188.6,0.00292125]
[1768876460402,0.85459269,3189.7,3188.6,0.00292125]
[1768876464712,0.85459269,3189.6,3188.6,0.00292125]
[1768876464904,0.85459269,3189.5,3188.6,0.00292125]
[1768876465212,0.85594117,3189.4,3187.9,0.13366688]
[1768876465412,0.85594117,3189.3,3187.9,0.13366688]
[1768876465615,1.2473444,3189.7,3187.9,0.13366688]
[1768876465812,0.85592702,3189.6,3187.9,0.13366688]
[1768876466011,0.85592702,3189.5,3187.9,0.13366688]
[1768876466309,0.85592702,3189.4,3187.9,0.136456]
[1768876466508,0.85592702,3189.3,3187.9,0.136456]
[1768876466710,1.2473444,3189.7,3187.9,0.136456]
[1768876466911,0.85584491,3189.6,3187.9,0.136456]
[1768876467111,0.85584491,3189.5,3187.9,0.136456]
[1768876467412,0.85584491,3189.4,3187.9,0.136456]
[1768876467614,0.85584491,3189.3,3187.9,0.136456]
[1768876467809,0.15686,3189.6,3187.9,0.136456]
[1768876468009,0.85567636,3189.5,3187.9,0.136456]
[1768876468311,0.85567636,3189.4,3187.9,0.136456]
[1768876468510,0.85567636,3189.3,3187.9,0.136456]
[1768876468715,1.11346089,3189.7,3188.3,0.13366688]
[1768876468910,0.85567846,3189.6,3188.3,0.13366688]
[1768876469213,1.11346089,3190.0,3188.3,0.13366688]
[1768876469406,1.2473444,3189.9,3187.9,0.136456]
[1768876469609,0.85589202,3189.8,3187.9,0.136456]
[1768876470014,1.01274202,3189.8,3187.9,0.136456]
[1768876470317,0.85589202,3189.7,3187.9,0.136456]
[1768876470615,0.85589202,3189.6,3187.9,0.136456]
[1768876470810,0.15685,3189.8,3187.9,0.136456]
[1768876471012,0.8555709,3189.7,3187.9,0.136456]
[1768876471214,0.8555709,3189.6,3187.9,0.136456]
[1768876471424,0.15685,3189.8,3187.9,0.136456]
[1768876471612,0.85555303,3189.7,3187.9,0.136456]
[1768876471816,0.85555303,3189.6,3187.9,0.136456]
[1768876472117,0.15685,3189.8,3187.9,0.136456]
[1768876472420,0.85555301,3189.7,3188.1,0.13366688]
[1768876472612,0.85555301,3189.6,3188.1,0.13366688]
[1768876472811,1.11346089,3190.0,3188.1,0.13366688]
[1768876474118,1.96900204,3190.0,3188.5,0.13366688]
[1768876474422,0.85554115,3189.9,3188.5,0.13366688]
[1768876474719,0.85554115,3189.8,3188.5,0.13366688]
[1768876474909,0.85554115,3189.7,3188.5,0.13366688]
[1768876475207,1.11346089,3190.1,3188.5,0.13366688]
[1768876475407,1.96922173,3190.2,3188.8,0.13366688]
[1768876475605,0.85576084,3190.1,3188.8,0.13366688]
[1768876475817,1.11346089,3190.6,3188.8,0.13366688]
[1768876476816,0.85595464,3190.5,3188.8,0.13366688]
[1768876477015,0.85595464,3190.4,3188.8,0.13366688]
[1768876477214,1.11346089,3190.8,3188.8,0.13366688]
[1768876477915,1.96960531,3190.8,3188.8,0.13366688]
[1768876479623,1.96960531,3190.8,3188.9,0.13366688]
[1768876480314,0.15955189,3190.9,3188.9,0.13366688]
[1768876480315,0.85614442,3190.7,3188.9,0.13366688]
[1768876480622,0.85614442,3190.6,3188.9,0.13366688]
[1768876480920,0.85614442,3190.5,3188.9,0.13366688]
[1768876481116,1.27301278,3190.9,3188.9,0.13366688]
[1768876481317,0.85826867,3190.8,3188.9,0.13366688]
[1768876481623,0.85826867,3190.7,3188.9,0.13366688]
[1768876481819,0.85826867,3190.6,3188.9,0.13366688]
[1768876482014,0.85826867,3190.5,3188.9,0.13366688]
[1768876482215,1.40372293,3190.9,3188.9,0.13366688]
[1768876482416,0.85806451,3190.8,3188.9,0.13366688]
[1768876482618,0.98877466,3190.7,3188.9,0.13366688]
[1768876482925,0.13071015,3190.6,3188.9,0.13366688]
[1768876483121,0.85806451,3190.5,3188.9,0.13366688]
[1768876487721,0.85806451,3190.4,3188.9,0.13366688]
[1768876487922,1.11346089,3190.8,3188.9,0.13366688]
[1768876488320,0.86005681,3190.7,3188.9,0.13366688]
[1768876488525,0.86005681,3190.6,3188.9,0.13366688]
[1768876488726,0.86005681,3190.5,3188.9,0.13366688]
[1768876488928,1.27301278,3190.9,3188.9,0.13366688]
[1768876489126,1.17717995,3190.8,3188.9,0.13366688]
[1768876489331,0.85998451,3190.7,3188.9,0.13366688]
[1768876489530,0.85998451,3190.6,3188.9,0.13366688]
[1768876489728,0.85998451,3190.5,3188.9,0.13366688]
[1768876489926,1.27301278,3190.9,3188.9,0.13366688]
[1768876490121,1.17706932,3190.8,3188.9,0.13366688]
[1768876490321,0.85989885,3190.7,3188.9,0.13366688]
[1768876490522,0.85989885,3190.6,3188.9,0.13366688]
[1768876490725,0.85989885,3190.5,3188.9,0.13366688]
[1768876491021,1.27301278,3190.9,3188.9,0.13366688]
[1768876491219,1.17699677,3190.8,3188.9,0.13366688]
[1768876491422,0.85984051,3190.7,3188.9,0.13366688]
[1768876491619,0.85984051,3190.6,3188.9,0.13366688]
[1768876491820,0.85984051,3190.5,3188.9,0.13366688]
[1768876492021,1.27301278,3190.9,3188.9,0.13366688]
[1768876492225,1.17696796,3190.8,3188.9,0.13366688]
[1768876492421,1.27301278,3190.9,3188.9,0.13366688]
[1768876492422,0.85981394,3190.7,3188.9,0.13366688]
[1768876492624,0.85981394,3190.6,3188.9,0.13366688]
[1768876492826,0.85981394,3190.5,3188.9,0.13366688]
[1768876493023,1.27301278,3190.9,3188.9,0.13366688]
[1768876493225,1.17702073,3190.8,3188.9,0.13366688]
[1768876493424,0.85984366,3190.7,3188.9,0.13366688]
[1768876493628,0.85984366,3190.6,3188.9,0.13366688]
[1768876493828,0.85984366,3190.5,3188.9,0.13366688]
[1768876494035,1.27301278,3190.9,3188.9,0.13366688]
[1768876494236,1.17699947,3190.8,3188.9,0.13366688]
[1768876494430,0.8598198,3190.7,3188.9,0.13366688]
[1768876494633,0.8598198,3190.6,3188.9,0.13366688]
[1768876494833,0.8598198,3190.5,3188.9,0.13366688]
[1768876495037,1.27301278,3190.9,3188.9,0.13366688]
[1768876495238,1.17703279,3190.8,3188.9,0.13366688]
[1768876495438,0.8598334,3190.7,3188.9,0.13366688]
[1768876495638,0.8598334,3190.6,3188.9,0.13366688]
[1768876495847,0.8598334,3190.5,3188.9,0.13366688]
[1768876496143,1.27301278,3190.9,3188.9,0.13366688]
[1768876496348,0.86009769,3190.8,3188.9,0.13366688]
[1768876496641,0.86009769,3190.7,3188.9,0.13366688]
[1768876496833,0.86009769,3190.6,3188.9,0.13366688]
[1768876497033,0.86009769,3190.5,3188.9,0.13366688]
[1768876497230,1.27301278,3190.9,3188.9,0.13366688]
[1768876497432,0.86012239,3190.8,3188.9,0.13366688]
[1768876497634,0.86012239,3190.7,3188.9,0.13366688]
[1768876497834,0.86012239,3190.6,3188.9,0.13366688]
[1768876498047,0.86012239,3190.5,3188.9,0.13366688]
[1768876498238,1.27301278,3190.9,3189.0,0.13114814]
[1768876498439,0.86031805,3190.8,3189.3,0.13114814]
[1768876498637,0.86031805,3190.7,3189.3,0.13114814]
[1768876498835,0.86031805,3190.6,3189.3,0.13114814]
[1768876499042,0.15955189,3190.9,3189.3,0.13114814]
[1768876499237,0.86036471,3190.8,3189.3,0.13114814]
[1768876499540,0.86036471,3190.7,3189.3,0.13114814]
[1768876499741,0.86036471,3190.6,3189.3,0.13114814]
[1768876499947,0.15955189,3190.9,3189.3,0.13114814]
[1768876500147,0.86047496,3190.8,3189.3,0.13114814]
[1768876500340,0.86047496,3190.7,3189.3,0.13114814]
[1768876500542,0.86047496,3190.6,3189.3,0.13114814]
[1768876500841,0.15955189,3190.9,3189.3,0.13114814]
[1768876501148,0.86064515,3190.8,3189.3,0.13114814]
[1768876501344,0.00275189,3190.9,3189.3,0.13114814]
[1768876501345,0.86064515,3190.7,3189.3,0.13114814]
[1768876501556,0.00275189,3190.9,3189.3,0.28801814]
[1768876501748,0.86084432,3190.8,3189.4,0.13114814]
[1768876501947,0.86084432,3190.7,3189.4,0.13114814]
[1768876502154,0.00275189,3190.9,3189.4,0.13114814]
[1768876502354,0.86086534,3190.8,3189.4,0.13114814]
[1768876502547,0.86086534,3190.7,3189.4,0.13114814]
[1768876502753,0.00275189,3190.9,3189.7,0.13114814]
[1768876503352,1.11346089,3191.4,3190.1,0.13114814]
[1768876503557,0.86131998,3191.3,3190.1,0.13114814]
[1768876503760,0.86131998,3191.2,3189.7,0.28799814]
[1768876503950,0.86131998,3191.1,3189.8,3.735]
[1768876504149,0.00397016,3191.1,3189.8,3.86614814]
[1768876505159,0.00397016,3191.1,3189.8,0.13114814]
[1768876505358,0.99628544,3191.0,3189.3,0.13114814]
[1768876505550,0.86208929,3190.9,3189.4,3.734]
[1768876505754,0.13419615,3191.0,3189.4,3.86514814]
[1768876505954,0.86194337,3190.9,3189.4,3.86514814]
[1768876506261,0.13419615,3191.0,3189.4,3.86514814]
[1768876506458,0.00397016,3191.1,3189.0,9.15986486]
[1768876506459,0.86195103,3190.9,3189.5,0.13114814]
[1768876506653,0.00397016,3191.1,3189.5,0.13114814]
[1768876506849,0.86198209,3191.0,3189.5,0.13114814]
[1768876507052,0.00397016,3191.1,3189.5,0.13114814]
[1768876507247,0.86206588,3191.0,3189.5,0.13114814]
[1768876507452,0.00397016,3191.1,3189.5,0.13114814]
[1768876507653,0.86194112,3191.0,3189.5,0.13114814]
[1768876507861,0.00397016,3191.1,3189.5,0.13114814]
[1768876508064,0.86195932,3191.0,3189.5,0.13114814]
[1768876508362,0.00397016,3191.1,3189.5,0.13114814]
[1768876508560,0.86184209,3191.0,3189.5,0.13114814]
[1768876508765,0.00397016,3191.1,3189.5,0.13114814]
[1768876509063,0.86184153,3191.0,3189.5,0.13114814]
[1768876509259,0.00397016,3191.1,3189.5,0.13114814]
[1768876509461,0.86173473,3191.0,3189.5,0.13114814]
[1768876509761,0.00397016,3191.1,3189.5,0.13114814]
[1768876510062,0.86173438,3191.0,3189.5,0.13114814]
[1768876510357,0.00397016,3191.1,3189.5,0.13114814]
[1768876510560,0.86135079,3191.0,3189.5,0.13114814]
[1768876510759,0.00397016,3191.1,3189.5,0.13114814]
[1768876511061,0.00397016,3191.1,3189.9,1.31125397]
[1768876511561,0.00397016,3191.1,3190.2,1.18010583]
[1768876511760,0.00397016,3191.1,3190.2,1.18351773]
[1768876514462,0.00397016,3191.1,3190.2,1.31466587]
[1768876515159,1.11346089,3191.8,3190.8,1.18010583]
[1768876515358,0.86142489,3191.8,3190.8,1.18010583]
[1768876515559,0.86142489,3191.7,3190.8,1.18010583]
[1768876515767,0.86142489,3191.6,3190.8,1.18010583]
[1768876515955,1.11346089,3192.0,3190.8,1.18010583]
[1768876516264,1.97722458,3192.0,3190.8,1.18010583]
[1768876516455,1.11346089,3191.8,3190.8,1.18010583]
[1768876517364,1.97488587,3191.8,3190.8,1.18010583]
[1768876517553,1.97488587,3191.8,3190.5,0.13114814]
[1768876517554,0.86142498,3191.7,3190.5,0.13114814]
[1768876517749,0.86142498,3191.6,3190.6,1.31125397]
[1768876517954,0.86142498,3191.5,3190.6,1.31125397]
[1768876518256,1.1157996,3192.0,3191.0,0.13114814]
[1768876518463,1.1157996,3192.0,3191.2,1.18010583]
[1768876518651,0.8609845,3191.9,3191.2,1.18010583]
[1768876519260,0.00233871,3192.0,3191.2,1.18010583]
[1768876519868,0.00233871,3192.0,3191.2,1.31125397]
[1768876520167,0.00233871,3192.0,3191.2,0.13114814]
[1768876520460,0.00233871,3192.0,3190.7,1.31125397]
[1768876521268,0.00233871,3192.0,3190.7,0.13114814]
[1768876521468,0.86048722,3191.9,3190.7,0.13114814]
[1768876521767,0.00233871,3192.0,3190.7,0.13114814]
[1768876521968,0.86048592,3191.9,3190.7,0.13114814]
[1768876522264,0.00233871,3192.0,3190.7,0.13114814]
[1768876522466,0.00233871,3192.0,3191.3,1.18010583]
[1768876522663,1.11346089,3192.7,3191.6,1.18010583]
[1768876522969,1.97391167,3192.7,3191.6,1.18010583]
[1768876523162,0.86045078,3192.6,3191.6,1.18010583]
[1768876523357,0.86045078,3192.5,3191.6,1.18010583]
[1768876523562,0.86045078,3192.4,3191.6,1.18010583]
[1768876523865,0.00381434,3192.4,3191.6,1.31107842]
[1768876526059,0.00381434,3192.4,3191.2,1.31107842]
[1768876526355,1.16799391,3193.3,3192.1,1.18010583]
[1768876526556,0.85971983,3193.2,3192.1,1.18010583]
[1768876526761,0.85971983,3193.1,3192.1,1.18010583]
[1768876526968,0.85971983,3193.0,3192.1,1.18010583]
[1768876527169,0.15667,3193.4,3192.1,1.18010583]
[1768876527363,0.85982838,3193.3,3192.1,1.18010583]
[1768876527559,0.85982838,3193.2,3192.2,0.13097259]
[1768876527766,0.00306293,3193.4,3192.7,1.18010583]
[1768876528070,0.00306293,3193.4,3192.7,0.00369759]
[1768876533169,0.00306293,3193.4,3192.7,0.13467018]
[1768876534780,0.00306293,3193.4,3192.7,0.00369759]
[1768876548883,0.00306293,3193.4,3191.8,0.28919145]
[1768876549089,0.8597823,3193.3,3191.9,0.13244145]
[1768876549280,0.00306293,3193.4,3191.9,0.13244145]
[1768876549587,0.86000769,3193.3,3191.9,0.13244145]
[1768876549789,0.00306293,3193.4,3191.9,0.13608639]
[1768876549986,0.86000669,3193.3,3191.9,0.13608639]
[1768876550205,0.00306293,3193.4,3191.9,0.13608639]
[1768876550388,0.86032626,3193.3,3191.9,0.13608639]
[1768876550691,0.00306293,3193.4,3191.9,0.13608639]
[1768876550889,0.86032556,3193.3,3192.4,1.17826266]
[1768876551086,0.00306293,3193.4,3192.4,1.31070411]
[1768876551281,0.00306293,3193.4,3192.5,0.13244145]
[1768876551480,0.86080954,3193.3,3192.6,1.17826266]
[1768876551687,0.00306293,3193.4,3192.5,0.13244145]
[1768876551880,0.86081809,3193.3,3192.5,0.13244145]
[1768876552082,0.00306293,3193.4,3192.5,0.13244145]
[1768876552385,0.86075735,3193.3,3192.5,0.13244145]
[1768876552586,0.86075735,3193.2,3192.5,0.13244145]
[1768876552781,0.00306293,3193.4,3192.5,0.13244145]
[1768876552988,0.86132361,3193.3,3192.5,0.13244145]
[1768876553188,0.00306293,3193.4,3192.5,0.13244145]
[1768876553189,0.86132361,3193.2,3192.5,0.13244145]
[1768876553490,0.00306293,3193.4,3192.5,0.13244145]
[1768876553790,0.86171531,3193.3,3192.5,0.13244145]
[1768876553992,0.86171531,3193.2,3192.5,0.13244145]
[1768876554192,0.00306293,3193.4,3192.1,1.31616404]
[1768876554390,0.86171238,3193.3,3192.1,1.31616404]
[1768876554588,0.86171238,3193.2,3192.1,1.31616404]
[1768876554787,1.18132559,3193.4,3192.1,0.13790138]
[1768876554990,1.17826266,3193.1,3191.9,0.00364494]
[1768876555186,1.17826266,3192.8,3191.9,0.00364494]
[1768876555394,0.86173541,3192.7,3191.9,0.00364494]
[1768876555696,1.11346089,3193.0,3191.9,0.00364494]
[1768876555895,0.86194754,3192.9,3191.9,0.14154632]
[1768876556090,0.86194754,3192.8,3191.9,0.14154632]
[1768876556286,0.86194754,3192.7,3191.9,0.00364494]
[1768876556490,1.67907883,3193.2,3191.9,0.00364494]
[1768876556491,0.86194754,3192.6,3191.9,0.00364494]
[1768876556689,2.29172355,3193.0,3191.9,0.00364494]
[1768876556884,0.86215126,3192.9,3191.9,0.00364494]
[1768876557090,2.29172355,3193.0,3191.9,0.00364494]
[1768876557091,0.86215126,3192.8,3191.9,0.00364494]
[1768876557289,0.86215126,3192.7,3191.9,0.00364494]
[1768876557486,0.86215126,3192.6,3192.0,1.31616404]
[1768876557698,1.11346089,3193.2,3192.3,1.17826266]
[1768876557894,0.86238263,3193.1,3192.3,1.31616404]
[1768876558193,0.86236784,3193.0,3191.9,0.00364494]
[1768876558388,1.17826266,3193.2,3191.9,0.00364494]
[1768876558587,0.86237142,3193.1,3191.9,0.00364494]
[1768876558786,0.86237142,3193.0,3191.9,0.00364494]
[1768876558986,1.17826266,3193.2,3191.9,0.00364494]
[1768876559285,0.86237571,3193.1,3191.9,0.00364494]
[1768876559485,1.17826266,3193.2,3191.9,0.00364494]
[1768876559486,0.86237571,3193.0,3191.9,0.00364494]
[1768876559794,1.17826266,3193.2,3191.9,0.00364494]
[1768876559992,0.86235806,3193.1,3191.9,0.00364494]
[1768876560191,0.86235806,3193.0,3191.9,0.00364494]
[1768876560495,0.86235806,3192.9,3191.9,0.00364494]
[1768876560691,0.86227356,3192.8,3191.9,0.00364494]
[1768876560990,1.17826266,3192.6,3191.9,0.00364494]
[1768876561190,0.86217538,3192.5,3191.9,0.00364494]
[1768876561388,2.29172355,3192.9,3191.9,0.00364494]
[1768876561590,0.86193767,3192.8,3191.9,0.00364494]
[1768876561793,0.86193767,3192.7,3191.9,0.00364494]
[1768876561997,0.86193767,3192.6,3191.9,0.00364494]
[1768876562193,0.86193767,3192.5,3191.9,0.00364494]
[1768876562496,2.29172355,3192.9,3191.9,0.00364494]
[1768876562697,0.86169915,3192.8,3191.9,0.00364494]
[1768876562892,0.86169915,3192.7,3191.9,0.00364494]
[1768876563092,0.86169915,3192.6,3191.9,0.00364494]
[1768876563295,2.29172355,3192.9,3191.9,0.00364494]
[1768876563494,0.86164401,3192.8,3191.9,0.00364494]
[1768876563698,0.86164401,3192.7,3191.9,0.00364494]
[1768876563894,0.86164401,3192.6,3191.9,0.00364494]
[1768876564094,1.17826266,3192.9,3191.9,0.00364494]
[1768876564289,0.86165541,3192.8,3191.9,0.00364494]
[1768876564489,0.86165541,3192.7,3191.9,0.00364494]
[1768876564691,0.86165541,3192.6,3191.9,0.00364494]
[1768876564896,0.86150189,3192.5,3191.3,0.13790138]
[1768876565103,1.17826266,3192.6,3191.3,0.13790138]
[1768876565999,1.17826266,3192.6,3191.3,0.14179111]
[1768876566194,0.86135495,3192.5,3191.3,0.14179111]
[1768876566398,1.17826266,3192.6,3191.3,0.00388973]
[1768876566601,0.86116511,3192.5,3191.3,0.00388973]
[1768876566798,0.86116511,3192.4,3191.3,0.00388973]
[1768876567006,1.17826266,3192.6,3191.3,0.00388973]
[1768876567298,0.86116292,3192.5,3191.4,1.17826266]
[1768876567504,0.1567,3192.8,3191.7,1.17826266]
[1768876567800,0.86102886,3192.7,3191.5,0.13790138]
[1768876567999,0.86102886,3192.6,3191.6,1.17826266]
[1768876568193,0.86102886,3192.5,3191.6,1.17826266]
[1768876568395,0.1567,3192.8,3191.6,1.17826266]
[1768876568597,0.8609263,3192.7,3191.6,1.17826266]
[1768876568801,0.8609263,3192.6,3191.6,1.17826266]
[1768876568987,0.1567,3192.8,3191.6,1.17826266]
[1768876569189,0.86092625,3192.7,3191.6,1.17826266]
[1768876569493,0.86092625,3192.6,3191.6,1.17826266]
[1768876569693,0.1567,3192.8,3191.6,1.17826266]
[1768876569893,0.86087193,3192.7,3191.6,1.17826266]
[1768876570100,0.86087193,3192.6,3191.6,1.17826266]
[1768876570400,0.1567,3192.8,3191.6,1.17826266]
[1768876570602,0.86108117,3192.7,3191.6,1.17826266]
[1768876570795,0.86108117,3192.6,3191.6,1.17826266]
[1768876571095,0.1567,3192.8,3191.6,1.17826266]
[1768876571295,0.86108173,3192.7,3191.6,1.17826266]
[1768876571598,0.86108173,3192.6,3191.5,0.13790138]
[1768876571899,0.1567,3192.8,3191.6,1.17826266]
[1768876572104,0.86110466,3192.7,3191.6,1.17826266]
[1768876572401,0.86110466,3192.6,3191.5,0.13790138]
[1768876572594,0.1567,3192.8,3191.5,1.31616404]
[1768876572794,0.86111694,3192.7,3191.5,1.31616404]
[1768876573095,0.86111694,3192.6,3191.5,0.13790138]
[1768876573294,0.1567,3192.8,3191.5,0.13790138]
[1768876573496,0.86115658,3192.7,3191.5,0.13790138]
[1768876573699,0.86115658,3192.6,3191.5,0.13790138]
[1768876573897,0.1567,3192.8,3191.5,0.13790138]
[1768876574091,0.86114934,3192.7,3191.5,0.13790138]
[1768876574402,0.86114934,3192.6,3191.5,0.13790138]
[1768876574597,0.1567,3192.8,3191.5,0.13790138]
[1768876574797,0.86116147,3192.7,3191.5,0.13790138]
[1768876574997,0.86116147,3192.6,3191.3,0.00388973]
[1768876575204,0.1567,3192.8,3191.3,0.00388973]
[1768876575504,0.86116175,3192.7,3191.3,0.00388973]
[1768876575803,0.86116175,3192.6,3191.3,0.00388973]
[1768876575995,0.1567,3192.8,3191.3,0.00388973]
[1768876576202,0.86118456,3192.7,3191.3,0.00388973]
[1768876576397,0.86118456,3192.6,3191.3,0.00388973]
[1768876576600,0.1567,3192.8,3191.3,0.00388973]
[1768876576805,0.15671,3192.6,3191.3,0.00388973]
[1768876577003,0.15672,3192.4,3191.3,0.00388973]
[1768876577205,0.86123213,3192.3,3191.3,0.00388973]
[1768876577409,0.15672,3192.4,3191.3,0.00388973]
[1768876577603,0.86111147,3192.3,3191.3,0.14179111]
[1768876577805,1.11346089,3192.7,3191.3,0.14179111]
[1768876583310,1.11346089,3192.7,3191.3,0.00388973]
[1768876583501,1.9745804,3192.6,3191.3,0.00388973]
[1768876588604,0.86111951,3192.5,3191.3,0.00388973]
[1768876588807,0.86111951,3192.4,3191.3,0.00388973]
[1768876589009,0.86111951,3192.3,3191.3,0.00388973]
[1768876589310,0.86111951,3192.2,3191.3,0.00388973]
[1768876589510,0.86111951,3192.1,3191.3,0.00388973]
[1768876589713,1.11346089,3192.5,3191.3,0.00388973]
[1768876590110,1.97587089,3192.5,3191.3,0.00388973]
[1768876590412,1.97587089,3192.5,3191.3,0.13813143]
[1768876594614,0.86241,3192.4,3191.3,0.13813143]
[1768876594915,0.86241,3192.3,3191.3,0.13813143]
[1768876595220,0.86241,3192.2,3191.3,0.13813143]
[1768876595414,0.86241,3192.1,3191.3,0.13813143]
[1768876595714,1.27017089,3192.6,3191.3,0.13813143]
[1768876595915,1.18072717,3192.5,3191.3,0.13813143]
[1768876596112,0.86259015,3192.4,3191.3,0.13813143]
[1768876596313,0.86259015,3192.3,3191.3,0.13813143]
[1768876596514,0.86259015,3192.2,3191.3,0.13813143]
[1768876596712,0.86259015,3192.1,3191.3,0.13813143]
[1768876596910,1.27017089,3192.6,3191.3,0.13813143]
[1768876597112,1.18079951,3192.5,3191.3,0.13813143]
[1768876597310,0.86264214,3192.4,3191.3,0.13813143]
[1768876597513,0.86264214,3192.3,3191.3,0.13813143]
[1768876597713,0.86264214,3192.2,3191.3,0.13813143]
[1768876597913,0.86264214,3192.1,3191.3,0.13813143]
[1768876598119,1.27017089,3192.6,3191.3,0.13813143]
[1768876598315,1.18082627,3192.5,3191.3,0.13813143]
[1768876598616,0.86265164,3192.4,3191.3,0.13813143]
[1768876598815,0.86265164,3192.3,3191.3,0.13813143]
[1768876599021,0.86265164,3192.2,3191.3,0.13813143]
[1768876599317,1.11346089,3192.6,3191.3,0.13813143]
[1768876599518,0.31820651,3192.5,3191.3,0.13813143]
[1768876599717,0.86278418,3192.4,3191.3,0.13813143]
[1768876599917,1.11346089,3192.6,3191.3,0.13813143]
[1768876599918,0.86278418,3192.3,3191.3,0.13813143]
[1768876600122,0.86278418,3192.2,3191.3,0.13813143]
[1768876600321,0.86278418,3192.1,3191.3,0.13813143]
[1768876600513,1.11346089,3192.5,3191.3,0.13813143]
[1768876604623,0.31831123,3192.4,3191.3,0.13813143]
[1768876604815,0.86343516,3192.3,3191.3,0.13813143]
[1768876605015,0.86343516,3192.2,3191.3,0.13813143]
[1768876605318,0.86343516,3192.1,3191.3,0.13813143]
[1768876605523,1.11346089,3192.5,3191.3,0.13813143]
[1768876606228,0.86383815,3192.4,3191.3,0.13813143]
[1768876606422,0.86383815,3192.3,3191.3,0.13813143]
[1768876606723,0.86383815,3192.2,3191.3,0.13813143]
[1768876606914,1.11346089,3192.6,3191.3,0.13813143]
[1768876608524,0.86405408,3192.5,3191.3,0.13813143]
[1768876608714,0.86405408,3192.4,3191.3,0.13813143]
[1768876608913,1.27016089,3192.8,3191.3,0.13813143]
[1768876609118,0.86399038,3192.7,3191.3,0.13813143]
[1768876609418,0.86399038,3192.6,3191.3,0.13813143]
[1768876609620,0.86399038,3192.5,3191.3,0.13813143]
[1768876609926,0.86399038,3192.4,3191.3,0.13813143]
[1768876610126,1.27016089,3192.8,3191.3,0.13813143]
[1768876610313,0.86377931,3192.7,3191.3,0.13813143]
[1768876610518,0.86377931,3192.6,3191.3,0.13813143]
[1768876610717,0.86377931,3192.5,3191.3,0.13813143]
[1768876610918,0.86377931,3192.4,3191.3,0.13813143]
[1768876611118,1.27016089,3192.8,3191.3,0.13813143]
[1768876611327,0.86365825,3192.7,3191.6,1.32384106]
[1768876611522,0.14358407,3193.1,3191.6,1.32384106]
[1768876611523,0.86365825,3192.6,3191.7,0.14493732]
[1768876611721,1.11346089,3193.0,3191.7,0.14493732]
[1768876611924,2.29532959,3192.9,3191.7,0.14493732]
[1768876612224,0.86358458,3192.8,3191.7,0.14493732]
[1768876612422,0.86358458,3192.7,3191.7,0.14493732]
[1768876612626,0.86358458,3192.6,3191.7,0.14493732]
[1768876612827,1.11346089,3193.0,3191.7,0.14493732]
[1768876613019,0.31821177,3192.9,3191.7,0.14493732]
[1768876613218,0.86339022,3192.8,3191.7,0.14493732]
[1768876613418,0.86339022,3192.7,3191.7,0.14493732]